bitfinex-derivatives/quotes_ETHF0:USTF0_20240913
["timestamp","ask_amount","ask_price","bid_price","bid_amount"]
[1726261263489,0.3859,2424.8,2424.7,3.38715577]
[1726261265387,0.3859,2424.8,2424.7,3.39012088]
[1726261265983,0.3859,2424.8,2424.7,2.85346589]
[1726261266195,0.3859,2424.8,2424.7,3.3899007]
[1726261268801,2.00884155,2424.8,2424.7,2.63659571]
[1726261269003,0.3859,2424.8,2424.7,3.39055191]
[1726261271701,0.3859,2424.8,2424.7,3.38955984]
[1726261275102,0.3859,2424.8,2424.7,3.38934991]
[1726261275908,0.3859,2424.8,2424.7,2.8529151]
[1726261276301,0.3859,2424.8,2424.7,3.388854]
[1726261279209,0.3859,2424.8,2424.7,2.8529151]
[1726261279607,0.79807,2424.8,2424.7,3.38867966]
[1726261279810,2.9607554,2424.8,2424.7,2.85279602]
[1726261280009,2.9607554,2424.8,2424.7,3.38870408]
[1726261281611,2.9607554,2424.8,2424.7,1.7766073]
[1726261284709,2.9607554,2424.8,2424.7,1.77598102]
[1726261284917,0.41219,2424.7,2424.6,1.61209678]
[1726261285109,1.15509,2424.7,2424.6,1.6093806]
[1726261285311,0.7429,2424.7,2424.5,1.0736573]
[1726261285507,2.57622808,2424.6,2424.5,1.0736573]
[1726261285809,2.16401808,2424.6,2424.5,0.5358504]
[1726261286016,2.16401808,2424.6,2424.4,1.0736573]
[1726261286405,2.16401808,2424.6,2424.5,1.0736573]
[1726261286829,2.16401808,2424.6,2424.3,1.61209678]
[1726261286830,2.16401808,2424.6,2424.4,1.0736573]
[1726261287008,2.57623808,2424.6,2424.4,1.0736573]
[1726261287611,0.41222,2424.5,2424.4,1.0736573]
[1726261288012,2.16401808,2424.6,2424.3,2.4136573]
[1726261288013,2.57623808,2424.6,2424.3,2.4136573]
[1726261288213,1.62196418,2424.5,2424.4,1.6096508]
[1726261288514,1.62175009,2424.5,2424.4,1.77579043]
[1726261288709,0.41222,2424.5,2424.4,1.77579043]
[1726261289311,0.41222,2424.5,2424.4,1.76556362]
[1726261289617,0.41222,2424.5,2424.4,0.53600609]
[1726261289811,0.41222,2424.5,2424.4,1.76541001]
[1726261290018,0.41222,2424.6,2424.4,1.76541001]
[1726261290218,0.41222,2424.6,2424.5,1.60896566]
[1726261292314,1.15511,2424.7,2424.5,6.15676566]
[1726261292608,2.03324705,2424.6,2424.5,4.5478]
[1726261293011,2.03324705,2424.6,2424.5,5.08366271]
[1726261293215,2.03324705,2424.6,2424.5,6.70553245]
[1726261293411,2.03324705,2424.6,2424.5,6.70542673]
[1726261293612,1.62103705,2424.6,2424.5,6.70542673]
[1726261293820,2.36393705,2424.7,2424.5,6.70542673]
[1726261294016,1.15509,2424.7,2424.6,1.60804968]
[1726261294815,2.77604862,2424.7,2424.6,1.60804968]
[1726261295120,2.77604862,2424.7,2424.6,1.60803144]
[1726261295510,1.15509,2424.7,2424.6,1.60803144]
[1726261295709,2.77606706,2424.7,2424.6,1.60803144]
[1726261295906,1.15509,2424.7,2424.6,1.60803144]
[1726261296630,2.77605596,2424.7,2424.6,1.60806804]
[1726261296815,1.15509,2424.7,2424.6,1.60806804]
[1726261297720,1.1551,2424.7,2424.5,1.07220533]
[1726261297915,3.31911808,2424.7,2424.5,1.07220533]
[1726261298120,3.31911808,2424.7,2424.4,1.07220533]
[1726261298316,1.62113852,2424.5,2424.4,1.07220533]
[1726261299314,1.62113852,2424.5,2424.4,1.60809854]
[1726261299515,1.62113852,2424.5,2424.4,1.07220533]
[1726261299912,1.62113852,2424.5,2424.3,2.82446533]
[1726261300117,0.7654,2424.4,2424.3,2.82446533]
[1726261300418,1.84611186,2424.4,2424.3,2.94812599]
[1726261300621,0.7654,2424.4,2424.3,1.07220533]
[1726261300820,2.38653852,2424.4,2424.3,1.60811235]
[1726261301017,2.38653852,2424.4,2424.3,1.07220533]
[1726261301222,2.38653852,2424.4,2424.2,2.78850533]
[1726261301424,1.46461395,2424.3,2424.2,2.78850533]
[1726261301621,1.46461395,2424.3,2424.2,3.32438336]
[1726261302020,0.3839,2424.3,2424.2,3.48079377]
[1726261302220,0.3839,2424.3,2424.2,1.76449377]
[1726261302624,1.46439906,2424.3,2424.2,0.53587803]
[1726261302929,0.3839,2424.3,2424.2,1.60807187]
[1726261303414,0.3839,2424.3,2424.2,1.60798085]
[1726261303614,1.46434747,2424.3,2424.2,1.60798085]
[1726261303816,0.3839,2424.3,2424.2,1.60798085]
[1726261304619,1.46428549,2424.3,2424.2,1.60798085]
[1726261306725,2.38653852,2424.4,2424.3,0.41226]
[1726261306726,1.08038549,2424.4,2424.3,0.41226]
[1726261306920,1.08016063,2424.5,2424.4,0.41224]
[1726261307227,1.08016063,2424.6,2424.4,7.80000875]
[1726261307420,1.08016063,2424.6,2424.5,1.07156511]
[1726261308326,1.08016063,2424.6,2424.5,1.07160934]
[1726261308517,2.03332852,2424.7,2424.5,1.07160934]
[1726261308717,1.62113852,2424.6,2424.4,4.27940934]
[1726261308929,1.08026308,2424.5,2424.4,4.27940934]
[1726261309117,1.08026308,2424.5,2424.4,4.27958584]
[1726261309628,1.08026308,2424.5,2424.4,4.43587194]
[1726261309824,1.08026308,2424.5,2424.4,4.43586568]
[1726261310020,1.08026308,2424.5,2424.4,4.43589076]
[1726261310528,1.08026308,2424.5,2424.4,4.43593742]
[1726261311114,1.62113852,2424.6,2424.4,1.07181062]
[1726261311321,1.19162,2424.5,2424.4,1.07181062]
[1726261311524,1.19162,2424.5,2424.3,1.07181062]
[1726261311525,2.81275852,2424.5,2424.3,1.07181062]
[1726261311821,0.378,2424.4,2424.3,1.07181062]
[1726261312022,1.45838182,2424.4,2424.3,1.07181062]
[1726261312730,1.45838182,2424.4,2424.3,1.60767896]
[1726261314226,1.45838182,2424.4,2424.3,2.83614426]
[1726261314430,1.45838182,2424.4,2424.3,1.60785982]
[1726261314625,1.45838182,2424.4,2424.3,1.22834418]
[1726261315017,1.45838182,2424.4,2424.3,5.88900343]
[1726261315329,1.08038182,2424.4,2424.3,1.76420343]
[1726261315529,1.08038182,2424.4,2424.3,2.83626921]
[1726261315923,1.08038182,2424.4,2424.3,1.60792503]
[1726261316121,1.08038182,2424.4,2424.3,5.88906458]
[1726261316629,1.08038182,2424.4,2424.3,2.83635721]
[1726261316828,1.08038182,2424.4,2424.3,6.96115721]
[1726261317324,1.08038182,2424.4,2424.3,5.73279027]
[1726261317525,1.08038182,2424.4,2424.3,2.83642591]
[1726261317727,1.08038182,2424.4,2424.3,2.83648148]
[1726261318124,1.08038182,2424.4,2424.3,2.30062223]
[1726261318327,1.08038182,2424.4,2424.3,2.83646117]
[1726261318734,1.08038182,2424.4,2424.3,2.8365622]
[1726261318937,1.08038182,2424.4,2424.3,1.60807099]
[1726261319140,1.08038182,2424.4,2424.3,2.83663316]
[1726261319633,1.08038182,2424.4,2424.3,1.76441475]
[1726261319824,1.08038182,2424.4,2424.3,2.83666443]
[1726261320024,1.08038182,2424.4,2424.3,1.76441475]
[1726261320835,1.08038182,2424.4,2424.3,1.22857581]
[1726261321137,1.08038182,2424.4,2424.3,1.7645113]
[1726261321531,1.08077033,2424.4,2424.3,1.76460872]
[1726261321738,1.08073192,2424.4,2424.3,1.76460872]
[1726261322129,1.49297192,2424.4,2424.3,1.76460872]
[1726261322343,2.03337852,2424.4,2424.3,1.60824681]
[1726261322836,1.62113852,2424.4,2424.3,1.07239963]
[1726261323230,1.62113852,2424.4,2424.3,1.6083031]
[1726261323937,2.03337852,2424.4,2424.2,1.07239963]
[1726261324332,1.62113852,2424.4,2424.2,1.07239963]
[1726261324637,1.62113852,2424.4,2424.1,5.23218678]
[1726261324638,1.62113852,2424.4,2424.3,1.07239963]
[1726261324840,1.62113852,2424.4,2424.1,5.23218678]
[1726261324841,2.03338852,2424.4,2424.2,1.07239963]
[1726261325536,1.62113852,2424.4,2424.2,1.07239963]
[1726261325828,1.62113852,2424.4,2424.3,1.07239963]
[1726261326034,1.62113852,2424.4,2424.3,1.60832598]
[1726261326236,5.74593852,2424.4,2424.3,1.60832598]
[1726261326437,4.1248,2424.4,2424.2,1.07239963]
[1726261326639,2.03397926,2424.3,2424.2,1.07239963]
[1726261326832,2.57626808,2424.4,2424.1,1.07239963]
[1726261327037,1.62167766,2424.2,2424.0,2.95209678]
[1726261327228,1.08111345,2424.1,2424.0,2.95209678]
[1726261327428,1.08103411,2424.1,2424.0,4.71756704]
[1726261330236,1.08108309,2424.1,2424.0,4.71756704]
[1726261330452,1.08108309,2424.1,2424.0,4.18176357]
[1726261330736,1.08108309,2424.1,2424.0,4.71791179]
[1726261331041,1.08108016,2424.1,2424.0,4.71791179]
[1726261331333,2.03395766,2424.2,2424.0,4.71791179]
[1726261331537,2.03395766,2424.2,2424.1,1.60934195]
[1726261332137,2.03395766,2424.2,2424.1,1.07319373]
[1726261332540,0.41229,2424.1,2423.9,1.07319373]
[1726261332729,0.41229,2424.1,2423.8,4.81989678]
[1726261332730,1.08095689,2424.0,2423.8,4.81989678]
[1726261333044,1.49325689,2424.1,2423.9,4.71800257]
[1726261333342,0.4123,2424.1,2424.0,2.83888859]
[1726261333636,0.4123,2424.1,2424.0,1.60934974]
[1726261333842,0.4123,2424.1,2424.0,1.07308951]
[1726261334044,0.4123,2424.1,2424.0,1.60933094]
[1726261334339,1.0808305,2424.1,2424.0,2.17800555]
[1726261334535,1.0808305,2424.2,2424.1,0.41229]
[1726261334846,1.62148544,2424.3,2424.1,6.56914309]
[1726261335142,1.62148544,2424.3,2424.1,6.03290166]
[1726261335340,1.08069464,2424.2,2424.1,6.03290166]
[1726261335544,1.62148544,2424.3,2424.1,6.56905324]
[1726261335737,1.08066938,2424.2,2424.1,6.03290166]
[1726261335928,2.03374544,2424.3,2424.1,5.62061166]
[1726261336132,2.03376544,2424.2,2424.1,3.2078]
[1726261336333,2.03376544,2424.2,2424.0,1.07281166]
[1726261336530,1.62148544,2424.2,2424.0,1.07281166]
[1726261336734,2.03376544,2424.2,2424.0,1.07281166]
[1726261337337,0.41229,2424.1,2424.0,1.07281166]
[1726261337640,0.41229,2424.1,2423.9,1.34]
[1726261337641,2.03377544,2424.1,2423.9,1.07281166]
[1726261337939,1.08061451,2424.0,2423.9,1.07281166]
[1726261338146,1.08062655,2424.0,2423.9,1.07281166]
[1726261338336,1.62148544,2424.1,2423.9,1.07281166]
[1726261338540,1.08061923,2424.0,2423.9,1.07281166]
[1726261338741,1.08061923,2424.0,2423.9,1.60900065]
[1726261339040,1.08061923,2424.0,2423.9,1.07281166]
[1726261340043,1.08048496,2424.0,2423.8,1.48515166]
[1726261340244,1.08047793,2424.0,2423.9,1.07281166]
[1726261340437,1.08038093,2424.0,2423.8,1.48515166]
[1726261340643,1.08038093,2424.0,2423.9,1.07281166]
[1726261340836,1.0804318,2424.0,2423.9,1.07281166]
[1726261341541,1.0804318,2424.0,2423.8,1.48515166]
[1726261341744,1.0804318,2424.0,2423.9,1.07281166]
[1726261342344,1.08038482,2424.0,2423.8,1.48515166]
[1726261342546,1.62148544,2424.1,2423.8,1.48515166]
[1726261342744,1.08039918,2424.0,2423.8,1.48515166]
[1726261344248,1.08039918,2423.9,2423.8,1.07281166]
[1726261344743,1.08039918,2423.9,2423.7,4.28061166]
[1726261344939,1.08039918,2423.9,2423.7,4.69297166]
[1726261345447,1.08039918,2423.9,2423.7,6.03297166]
[1726261345946,1.08039918,2423.9,2423.7,5.62061166]
[1726261346146,1.08039918,2424.0,2423.8,1.48515166]
[1726261346352,1.08039918,2424.1,2423.9,4.17748701]
[1726261346541,1.08039918,2424.1,2424.0,3.2078]
[1726261347040,1.08039918,2424.1,2423.9,2.8244688]
[1726261347345,1.08039918,2424.1,2424.0,3.2078]
[1726261352946,5.61828918,2424.1,2424.0,3.2078]
[1726261353154,5.61828918,2424.1,2423.8,1.61209678]
[1726261353155,0.41231,2424.0,2423.8,1.0721488]
[1726261353460,1.08006891,2423.9,2423.7,4.6922988]
[1726261353944,0.3786,2423.8,2423.7,4.6922988]
[1726261354144,0.3786,2423.8,2423.7,5.38626472]
[1726261354351,0.3786,2423.8,2423.7,6.45933998]
[1726261354554,0.3786,2423.8,2423.7,5.38622678]
[1726261354754,0.3786,2423.8,2423.7,5.38633952]
[1726261355052,0.3786,2423.8,2423.7,5.22991679]
[1726261355645,0.3786,2423.8,2423.7,5.38633272]
[1726261357156,0.3786,2423.8,2423.7,6.45953823]
[1726261357353,0.3786,2423.8,2423.7,5.23000068]
[1726261358155,0.3786,2423.8,2423.7,5.38640924]
[1726261358456,0.3786,2423.8,2423.7,6.83983229]
[1726261358751,0.3786,2423.8,2423.7,5.61030944]
[1726261360150,0.3786,2423.8,2423.7,5.76679026]
[1726261360556,1.08006891,2424.0,2423.8,0.41234]
[1726261360756,1.08006891,2424.0,2423.8,2.41315445]
[1726261360954,1.08006891,2423.9,2423.8,2.82548445]
[1726261361252,1.08006891,2424.0,2423.8,2.94974748]
[1726261361459,1.08006891,2423.9,2423.8,2.41315445]
[1726261361954,1.08006891,2423.9,2423.8,2.82549445]
[1726261362355,1.08006891,2423.9,2423.8,3.3621154]
[1726261364087,1.08006891,2423.9,2423.8,2.82549445]
[1726261364455,1.08006891,2424.0,2423.8,3.51900104]
[1726261364658,1.08006891,2423.9,2423.8,1.75234]
[1726261364853,1.08006891,2423.9,2423.8,5.13131716]
[1726261365155,1.08006891,2423.9,2423.8,3.51922038]
[1726261365549,1.08006891,2423.9,2423.8,4.71897716]
[1726261365745,1.08006891,2423.9,2423.8,2.95058655]
[1726261365952,1.08006891,2423.9,2423.8,2.17947506]
[1726261366151,2.20646891,2423.9,2423.8,2.02291511]
[1726261366359,2.20646891,2423.9,2423.8,3.25337845]
[1726261367152,2.20646891,2423.9,2423.8,2.17947299]
[1726261367561,2.20646891,2423.9,2423.8,3.25490012]
[1726261367860,1.1264,2423.9,2423.8,2.1794567]
[1726261368062,2.20737629,2423.9,2423.8,2.17960999]
[1726261368363,2.20737629,2423.9,2423.8,3.79170677]
[1726261368755,1.1264,2423.9,2423.8,2.17960999]
[1726261369263,2.20742964,2423.9,2423.8,3.79170677]
[1726261369657,1.1264,2423.9,2423.8,2.17960999]
[1726261370162,2.20753557,2423.9,2423.8,3.79170677]
[1726261370560,2.20753557,2423.9,2423.8,3.0381525]
[1726261370759,2.20753557,2423.9,2423.8,3.79085704]
[1726261370966,2.20753557,2423.9,2423.8,3.79083954]
[1726261371159,2.20753557,2423.9,2423.8,3.79084625]
[1726261371353,2.20753557,2423.9,2423.8,3.03816286]
[1726261371559,2.20753557,2423.9,2423.8,4.64958084]
[1726261371766,2.20753557,2423.9,2423.8,3.03816189]
[1726261372173,2.20753557,2423.9,2423.8,4.64954664]
[1726261372361,1.1264,2423.9,2423.8,3.79099657]
[1726261372662,2.20789095,2423.9,2423.8,2.17955042]
[1726261372858,2.20789095,2423.9,2423.8,3.03851397]
[1726261374163,2.20793455,2423.9,2423.8,4.65021591]
[1726261374369,2.20793455,2423.9,2423.8,3.03851397]
[1726261375067,1.1264,2423.9,2423.8,5.18090381]
[1726261375267,2.20793455,2423.9,2423.8,3.03851397]
[1726261375968,1.83743455,2423.9,2423.8,5.18090381]
[1726261376168,1.83743455,2423.9,2423.8,3.03851397]
[1726261377173,0.7559,2423.9,2423.8,3.03851397]
[1726261377364,1.8375461,2423.9,2423.8,3.03851397]
[1726261377572,0.7559,2423.9,2423.8,3.03878496]
[1726261378070,1.83757972,2423.9,2423.8,3.03878496]
[1726261379979,0.4006,2424.1,2424.0,1.44309]
[1726261379980,1.08167972,2424.1,2424.0,1.44309]
[1726261380269,1.62148544,2424.5,2424.3,1.03065]
[1726261380474,1.62148544,2424.6,2424.5,0.41222]
[1726261380666,1.62148544,2424.6,2424.5,3.79089599]
[1726261380865,1.1657,2424.7,2424.6,0.41221]
[1726261381065,2.78690736,2424.7,2424.6,2.02201331]
[1726261381865,2.78690736,2424.7,2424.6,2.02142824]
[1726261382270,2.78690736,2424.7,2424.6,0.41221]
[1726261382670,2.78690736,2424.7,2424.6,1.48541952]
[1726261382873,2.78690736,2424.7,2424.6,0.41221]
[1726261384170,1.1657,2424.7,2424.6,0.41221]
[1726261395476,1.1657,2424.7,2424.6,1.75221]
[1726261398191,1.1657,2424.7,2424.6,0.41221]
[1726261399596,0.3918,2424.7,2424.6,5.87621]
[1726261399776,0.3918,2424.7,2424.6,1.75221]
[1726261400091,0.3918,2424.7,2424.6,5.87621]
[1726261402783,0.7694,2424.8,2424.7,0.41219]
[1726261402979,0.3823,2425.1,2424.7,7.3318]
[1726261403182,1.92420736,2425.5,2425.1,1.75211]
[1726261403183,0.745,2425.5,2425.1,1.75211]
[1726261403382,0.3823,2425.2,2425.1,0.41211]
[1726261403589,0.3823,2425.2,2425.1,1.75211]
[1726261405695,0.745,2425.5,2425.4,0.41207]
[1726261405998,1.1309,2425.5,2425.4,4.95987]
[1726261406186,1.1309,2425.5,2425.4,4.5478]
[1726261406494,1.1309,2425.5,2425.4,4.95987]
[1726261407591,1.1309,2425.5,2425.4,3.2078]
[1726261410497,1.1309,2425.5,2425.4,3.61987]
[1726261410994,1.1309,2425.5,2425.4,4.00067]
[1726261412194,1.71720736,2426.2,2425.4,13.7118]
[1726261412400,0.3807,2425.8,2425.7,3.2078]
[1726261412599,0.3807,2425.8,2425.7,4.5478]
[1726261412906,0.3807,2425.8,2425.7,4.95982]
[1726261414190,0.3807,2425.8,2425.7,4.5478]
[1726261414392,0.3807,2425.8,2425.7,1.34]
[1726261414796,0.3807,2425.8,2425.6,0.41203]
[1726261415104,0.3807,2425.8,2425.7,1.34]
[1726261417797,0.3807,2425.8,2425.4,3.61986]
[1726261417999,0.41204,2425.7,2425.4,3.2078]
[1726261418502,0.78804,2425.6,2425.4,3.2078]
[1726261419996,0.376,2425.6,2425.4,3.2078]
[1726261420199,0.3807,2425.8,2425.4,3.2078]
[1726261420505,0.3807,2425.8,2425.7,4.5478]
[1726261420698,0.3807,2425.8,2425.7,4.95982]
[1726261421002,0.3807,2425.8,2425.7,9.08222]
[1726261422199,0.3807,2425.8,2425.7,10.63222]
[1726261425203,0.3807,2425.8,2425.7,6.50982]
[1726261425602,0.3807,2425.8,2425.7,6.0978]
[1726261425901,0.3807,2425.8,2425.5,3.2928]
[1726261426107,0.79271,2425.8,2425.5,0.41205]
[1726261429010,0.41203,2425.7,2425.4,6.83176054]
[1726261429325,0.41203,2425.7,2425.4,6.50987]
[1726261429522,0.3807,2425.8,2425.4,6.0978]
[1726261429714,0.3807,2425.8,2425.4,3.2078]
[1726261430019,0.41205,2425.5,2425.4,3.2078]
[1726261430319,0.41205,2425.6,2425.4,3.2078]
[1726261430522,0.78525,2425.5,2425.4,3.2078]
[1726261430725,4.90845,2425.5,2425.4,3.2078]
[1726261430928,0.4121,2425.3,2425.1,0.096]
[1726261431130,0.4121,2425.3,2424.8,3.39817]
[1726261431423,0.41211,2425.2,2424.8,2.89]
[1726261431724,0.3732,2425.1,2424.8,2.89]
[1726261432438,0.4027,2425.0,2424.8,2.89]
[1726261432723,0.4027,2425.0,2424.8,3.30217]
[1726261433027,0.4027,2425.0,2424.8,2.89]
[1726261434328,0.4027,2425.0,2424.8,3.30217]
[1726261434625,0.4027,2425.0,2424.8,2.89]
[1726261435723,0.4027,2425.0,2424.8,3.30217]
[1726261439021,0.4027,2425.0,2424.9,0.41216]
[1726261439230,0.4027,2425.0,2424.8,2.89]
[1726261439426,0.4027,2425.0,2424.8,3.30216]
[1726261439622,0.4027,2425.0,2424.9,0.41216]
[1726261439820,0.4027,2425.0,2424.8,2.89]
[1726261440026,0.4027,2425.0,2424.9,0.41216]
[1726261444130,0.4027,2425.0,2424.9,1.75216]
[1726261445134,0.4027,2425.0,2424.9,2.82536952]
[1726261445336,0.4027,2425.0,2424.9,1.75216]
[1726261445543,0.3732,2425.1,2425.0,0.41214]
[1726261445734,0.3732,2425.1,2425.0,3.61994]
[1726261446238,0.3732,2425.1,2425.0,3.2078]
[1726261446739,0.3732,2425.1,2425.0,3.61994]
[1726261449430,0.3732,2425.1,2425.0,3.99824]
[1726261451440,0.3717,2425.5,2425.0,4.65930952]
[1726261451643,0.7593,2425.4,2425.3,0.41209]
[1726261451943,0.7593,2425.4,2425.3,4.95989]
[1726261452151,1.62120736,2425.9,2425.4,0.41206]
[1726261452335,1.54441,2425.8,2425.6,4.5478]
[1726261454045,0.41202,2425.7,2425.6,3.2078]
[1726261454540,1.54441,2425.8,2425.6,3.2078]
[1726261458151,1.1324,2425.8,2425.6,4.95983]
[1726261458451,1.5444,2425.8,2425.6,4.5478]
[1726261458852,1.1324,2425.8,2425.6,4.5478]
[1726261459453,1.5444,2425.8,2425.6,4.9231]
[1726261461956,1.62120736,2426.1,2425.6,4.9231]
[1726261462151,1.1623,2426.0,2425.7,1.34]
[1726261462357,0.41199,2425.9,2425.7,1.34]
[1726261463948,1.57428,2426.0,2425.7,1.75202]
[1726261467557,1.57428,2426.0,2425.9,1.34]
[1726261467558,1.57427,2426.0,2425.9,1.34]
[1726261468457,1.1623,2426.0,2425.9,1.34]
[1726261468661,1.1623,2426.0,2425.9,4.5478]
[1726261469262,1.1623,2426.0,2425.9,1.7204]
[1726261469760,0.7704,2426.0,2425.9,1.7204]
[1726261469963,1.62120736,2426.4,2426.1,0.41195]
[1726261470154,0.8037,2426.4,2426.3,1.34]
[1726261470753,1.62120736,2426.6,2426.3,1.34]
[1726261470963,0.8037,2426.7,2426.5,1.34]
[1726261471465,0.8037,2426.7,2426.4,1.34]
[1726261471466,4.9245,2426.7,2426.4,1.34]
[1726261471655,0.41187,2426.6,2426.4,1.34]
[1726261472567,0.404,2426.7,2426.5,4.5478]
[1726261472760,0.3776,2426.8,2426.6,0.4059]
[1726261472961,0.783,2426.8,2426.7,1.34]
[1726261477567,1.19483,2426.8,2426.7,1.34]
[1726261477965,0.41185,2426.7,2426.6,1.34]
[1726261478260,0.41185,2426.7,2426.4,1.34]
[1726261478459,0.41185,2426.7,2426.4,1.7519]
[1726261480963,0.41185,2426.7,2426.5,3.2078]
[1726261483372,0.41187,2426.6,2426.5,3.2078]
[1726261484172,0.41186,2426.7,2426.5,3.2078]
[1726261484363,0.41187,2426.6,2426.5,3.2078]
[1726261484871,0.41187,2426.6,2426.4,1.34]
[1726261485064,0.3755,2426.5,2426.4,1.34]
[1726261485566,0.78738,2426.5,2426.4,1.34]
[1726261485867,0.3755,2426.5,2426.4,1.34]
[1726261488564,0.78738,2426.5,2426.4,1.34]
[1726261488767,0.3755,2426.5,2426.4,1.34]
[1726261489472,0.78738,2426.5,2426.4,1.34]
[1726261489871,0.3755,2426.5,2426.4,1.34]
[1726261490966,0.78738,2426.5,2426.4,1.34]
[1726261495070,0.3755,2426.5,2426.4,1.34]
[1726261495268,0.78738,2426.5,2426.4,1.34]
[1726261495671,0.41191,2426.4,2426.2,0.4099]
[1726261495867,1.17441,2426.4,2426.2,1.7499]
[1726261502579,0.7625,2426.4,2426.2,2.16183]
[1726261502767,1.1744,2426.4,2426.2,2.16183]
[1726261504176,0.7625,2426.4,2426.3,1.34]
[1726261504474,1.4887443,2426.7,2426.3,1.34]
[1726261504680,2.2505443,2426.7,2426.4,5.3474]
[1726261505077,2.2505443,2426.7,2426.5,0.3999]
[1726261505284,0.7618,2426.7,2426.5,0.3999]
[1726261505474,1.17365,2426.7,2426.5,0.3999]
[1726261506680,0.7618,2426.7,2426.5,0.3999]
[1726261508481,1.17366,2426.7,2426.5,0.3999]
[1726261509072,0.7618,2426.7,2426.4,4.9355]
[1726261509283,2.79486736,2426.7,2426.4,2.1396]
[1726261509681,0.41187,2426.6,2426.4,1.7277]
[1726261509982,0.41187,2426.6,2426.4,1.34]
[1726261512276,0.41187,2426.6,2426.4,5.62100952]
[1726261512678,2.38300736,2426.7,2426.5,1.48507952]
[1726261512679,0.7618,2426.7,2426.5,1.48507952]
[1726261512880,0.7618,2426.7,2426.6,1.34]
[1726261513076,0.7618,2426.7,2426.6,1.711]
[1726261513283,0.7618,2426.7,2426.6,2.99062623]
[1726261513484,0.7618,2426.7,2426.6,2.78152586]
[1726261514487,0.7618,2426.7,2426.6,4.06163863]
[1726261514787,0.7618,2426.7,2426.6,4.06164811]
[1726261514988,0.7618,2426.7,2426.6,2.78152586]
[1726261515175,0.7618,2426.7,2426.6,2.99152017]
[1726261515374,0.7618,2426.7,2426.6,3.52650497]
[1726261515677,0.7618,2426.7,2426.6,4.59765449]
[1726261516075,0.7618,2426.7,2426.6,4.59766392]
[1726261516281,2.38300736,2426.7,2426.6,3.5265144]
[1726261516481,2.38300736,2426.7,2426.6,4.59780003]
[1726261516676,2.38300736,2426.7,2426.6,3.5265144]
[1726261516885,2.38300736,2426.7,2426.6,4.5977902]
[1726261517087,2.38300736,2426.7,2426.6,3.52652631]
[1726261517289,2.38300736,2426.7,2426.6,4.59778617]
[1726261517485,2.38300736,2426.7,2426.6,4.59778886]
[1726261517689,2.38300736,2426.7,2426.6,2.99152017]
[1726261517885,0.7618,2426.7,2426.6,3.52652394]
[1726261518278,0.7618,2426.7,2426.6,3.52651286]
[1726261518694,2.38300736,2426.7,2426.6,4.92741147]
[1726261518893,2.38300736,2426.7,2426.6,4.92745293]
[1726261519090,2.38300736,2426.7,2426.6,4.92745808]
[1726261519590,2.38300736,2426.7,2426.6,4.92763366]
[1726261519795,2.38300736,2426.7,2426.6,4.39259436]
[1726261519993,2.38300736,2426.7,2426.6,4.92799481]
[1726261520296,2.38300736,2426.7,2426.6,4.55709428]
[1726261520494,2.38300736,2426.7,2426.6,2.68195268]
[1726261521290,2.38300736,2426.7,2426.6,3.21715724]
[1726261521592,0.7618,2426.7,2426.6,2.1455208]
[1726261521795,2.38300736,2426.7,2426.6,1.93652796]
[1726261521996,2.38300736,2426.7,2426.6,2.68244436]
[1726261522193,2.38300736,2426.7,2426.6,1.40130291]
[1726261522395,2.38300736,2426.7,2426.6,2.68265374]
[1726261522598,2.38300736,2426.7,2426.6,1.40130291]
[1726261522895,2.38300736,2426.7,2426.6,2.6828367]
[1726261523098,2.79485736,2426.7,2426.6,3.21817917]
[1726261523287,2.79485736,2426.7,2426.6,2.68280731]
[1726261523482,2.79485736,2426.7,2426.6,1.4014759]
[1726261524288,7.94528736,2426.7,2426.6,1.4014759]
[1726261524490,8.48809808,2426.7,2426.6,0.3296]
[1726261524689,7.45846808,2426.7,2426.6,0.3296]
[1726261525089,5.29445,2426.7,2426.6,0.3296]
[1726261525392,7.45846808,2426.7,2426.6,0.3296]
[1726261525793,3.33766808,2426.7,2426.6,0.3296]
[1726261526194,1.17365,2426.7,2426.6,0.3296]
[1726261526589,3.33766808,2426.7,2426.6,0.3296]
[1726261526788,1.17365,2426.7,2426.6,0.3296]
[1726261527390,3.33766808,2426.7,2426.6,0.3296]
[1726261531591,1.17365,2426.7,2426.6,0.3296]
[1726261532102,1.17365,2426.7,2426.6,6.3611459]
[1726261532103,2.38223596,2426.7,2426.6,6.3611459]
[1726261532305,2.38223596,2426.7,2426.6,3.68863178]
[1726261532598,0.7618,2426.7,2426.6,9.16641503]
[1726261532793,0.7618,2426.7,2426.6,5.95861503]
[1726261532988,0.7618,2426.7,2426.6,9.49601503]
[1726261533499,2.02263596,2426.8,2426.6,9.08414503]
[1726261533500,0.4022,2426.8,2426.6,9.08414503]
[1726261533723,1.99353596,2426.9,2426.7,3.03305225]
[1726261533911,1.99353596,2426.9,2426.8,1.07143388]
[1726261534296,1.99353596,2426.9,2426.8,1.48326388]
[1726261534506,1.99353596,2426.9,2426.8,2.2274192]
[1726261534507,0.3731,2426.9,2426.8,2.2274192]
[1726261534896,0.7733,2427.0,2426.8,3.4263461]
[1726261535202,0.7733,2427.0,2426.9,2.41113965]
[1726261535598,1.62043596,2427.2,2427.0,0.4118]
[1726261535894,1.62043596,2427.3,2427.1,5.04136663]
[1726261536106,2.37553596,2427.4,2427.2,3.69041491]
[1726261536301,0.7551,2427.4,2427.2,6.03019419]
[1726261536904,2.37553596,2427.4,2427.2,6.03019419]
[1726261537108,0.7551,2427.4,2427.2,6.03019419]
[1726261537397,0.7551,2427.4,2427.2,4.95955]
[1726261537803,0.7551,2427.4,2427.2,4.5478]
[1726261538409,0.7551,2427.4,2427.2,4.95956]
[1726261538702,0.7551,2427.4,2427.2,4.95957]
[1726261538999,0.7551,2427.4,2427.2,4.5478]
[1726261540010,1.16684,2427.4,2427.2,4.5478]
[1726261540501,0.41175,2427.3,2427.2,4.5478]
[1726261541496,0.41175,2427.3,2427.2,1.34]
[1726261542207,4.12,2427.3,2426.9,2.41063419]
[1726261542396,0.4118,2427.1,2426.9,1.34]
[1726261542603,0.387,2427.0,2426.8,3.61963]
[1726261542803,0.387,2427.0,2426.9,1.7505]
[1726261543104,0.7769,2427.0,2426.9,1.7505]
[1726261545611,1.1887,2427.0,2426.8,3.2078]
[1726261545911,1.1887,2427.0,2426.9,1.34]